Workbook

Sheet Hoja1
B1: VERIFICACIÓN DE MAQUINARIA EN UP
A2: N° | B2: MÁQUINA | C2: VERIFICACIÓN | D2: COSTO | E2: VIDA UTIL AÑOS | F2: % MES
A3: 1 | B3: BALANZA | C3: SI | D3: 500 | E3: 8 | F3: =IF(C3="SI",D3/(E3*12),0) -> 5.208333333
A4: 2 | B4: BOTONERA | C4: SI | D4: 600 | E4: 8 | F4: =IF(C4="SI",D4/(E4*12),0) -> 6.25
A5: 3 | B5: OVERLOCK 3 HILOS | C5: NO | E5: 8 | F5: 0
A6: 4 | B6: OVERLOCK 5 HILOS | C6: NO | D6: 4500 | E6: 8 | F6: 0
A7: 5 | B7: REMALLADORA | C7: SI | E7: 8 | F7: 0
A8: 6 | B8: PLANCHA A VAPOR | C8: NO | E8: 8 | F8: 0
A9: 7 | B9: MÁQUINA SIMPLE | C9: SI | E9: 8 | F9: 0
A10: 8 | B10: MÁQUINA DOBLE | C10: NO | E10: 8 | F10: 0
A11: 9 | B11: MÁQUINA INDUSTRIAL | C11: NO | D11: 4510 | E11: 8 | F11: 0
E13: TOTAL COSTO MES MAQ | F13: =SUM(F3:F12) -> 11.45833333
E15: Producción Estimada | F15: 20
E17: costo unitario | F17: =+F13/F15 -> 0.5729166667

Sheet Hoja2
B1: VERIFICACIÓN DE MOBILIARIO EN UP
A2: N° | B2: MOBILIARIO | C2: VERIFICACIÓN | D2: COSTO | E2: VIDA AÑOS | F2: COSTO MES | G2: HORAS MES | H2: 176 | I2: HORAS PROCESO | J2: =SUM(IF(CHOMPA!F26="HR.",CHOMPA!E26,CHOMPA!E26/60),IF(CHOMPA!F27="HR.",CHOMPA!E27,CHOMPA!E27/60),IF(CHOMPA!C28<>"NO USO",IF(CHOMPA!F28="HR.",CHOMPA!E28,CHOMPA!E28/60),IF(CHOMPA!C29<>"NINGUNO",IF(CHOMPA!F29="HR.",CHOMPA!E29,CHOMPA!E29/60)))) -> 4
A3: 1 | B3: MESA | C3: SI | D3: 450 | E3: 10 | F3: =IF(C3="SI",D3/(E3*12),0) -> 3.75
A4: 2 | B4: ESTANTE | C4: NO | D4: 50 | E4: 10 | F4: =IF(C4="SI",D4/(E4*12),0) -> 0
A5: 3 | B5: MESA PARA PLANCHADO | C5: SI | D5: 456 | E5: 10 | F5: 3.8
A6: 4 | B6: SILLA | C6: NO | D6: 60 | E6: 10 | F6: 0
E8: TOTAL COSTO MOB | F8: =SUM(F3:F7) -> 7.55 | G8: PROD EST. | H8: =H2/J2 -> 44 | I8: COSTO UNIT | J8: =F8/H8 -> 0.1715909091

Sheet Hoja3
B1: VERIFICACIÓN DE HERRAMIENTAS TECNOLOGICAS EN UP
A2: N° | B2: H. TECNOLOGICA | C2: VERIFICACIÓN | D2: COSTO | E2: VIDA UTIL AÑOS | F2: COSTO MES | G2: HORAS MES | H2: 176 | I2: HORAS PROCESO | J2: =SUM(IF(CHOMPA!F26="HR.",CHOMPA!E26,CHOMPA!E26/60),IF(CHOMPA!F27="HR.",CHOMPA!E27,CHOMPA!E27/60),IF(CHOMPA!C28<>"NO USO",IF(CHOMPA!F28="HR.",CHOMPA!E28,CHOMPA!E28/60),IF(CHOMPA!C29<>"NINGUNO",IF(CHOMPA!F29="HR.",CHOMPA!E29,CHOMPA!E29/60)))) -> 4
A3: 1 | B3: COMPUTADORA | C3: SI | D3: 4556 | E3: 4 | F3: =IF(C3="SI",D3/(E3*12),0) -> 94.91666667
A4: 2 | B4: IMPRESORA | C4: SI | D4: 456 | E4: 4 | F4: =IF(C4="SI",D4/(E4*12),0) -> 9.5
A5: 3 | B5: CALCULADORA | C5: NO | D5: 45 | E5: 4 | F5: 0
F6: 0
E7: TOTAL COSTO MES | F7: =SUM(F3:F6) -> 104.4166667 | G7: PROD EST. | H7: =H2/J2 -> 44 | I7: COSTO UNIT | J7: =F7/H7 -> 2.373106061

Sheet Hoja4
B1: VERIFICACIÓN DE HERRAMIENTAS EN UP
A2: N° | B2: MÁQUINA | C2: VERIFICACIÓN | D2: COSTO ANUAL | E2: COSTO MES | F2: HORAS MES | G2: 176 | H2: HORAS PROCESO | I2: =SUM(IF(CHOMPA!F26="HR.",CHOMPA!E26,CHOMPA!E26/60),IF(CHOMPA!F27="HR.",CHOMPA!E27,CHOMPA!E27/60),IF(CHOMPA!C28<>"NO USO",IF(CHOMPA!F28="HR.",CHOMPA!E28,CHOMPA!E28/60),IF(CHOMPA!C29<>"NINGUNO",IF(CHOMPA!F29="HR.",CHOMPA!E29,CHOMPA!E29/60)))) -> 4
A3: 1 | B3: AGUJA PUNTA ROMA | C3: SI | D3: 10 | E3: =IF(C3="SI",D3/12,0) -> 0.8333333333
A4: 2 | B4: BORRADOR | C4: NO | D4: 12 | E4: =IF(C4="SI",D4/12,0) -> 0
A5: 3 | B5: CINTA METRICA | C5: SI | D5: 4 | E5: 0.3333333333
A6: 4 | B6: CROCHET | C6: NO | D6: 12 | E6: 0
A7: 5 | B7: CUADERNO DE TALLAS | C7: SI | D7: 25 | E7: 2.083333333
A8: 6 | B8: COLORES | C8: NO | D8: 0 | E8: 0
A9: 7 | B9: ALFILERES | C9: SI | D9: 0 | E9: 0
A10: 8 | B10: PIQUETERA | C10: NO | D10: 5 | E10: 0
A11: 9 | B11: FICHA TECNICA | C11: SI | D11: 546 | E11: 45.5
A12: 10 | B12: REGLA | C12: NO | D12: 0 | E12: 0
A13: 11 | B13: LAPIZ | C13: SI | D13: 12 | E13: 1
A14: 12 | B14: LAPIZ BICOLOR | C14: NO | D14: 12 | E14: 0
A15: 13 | B15: TAJADOR | C15: SI | D15: 50 | E15: 4.166666667
A16: 14 | B16: TIJERA | C16: NO | D16: 12 | E16: 0
E17: 0
D18: TOTAL HERR | E18: =SUM(E3:E17) -> 53.91666667 | F18: PROD EST. | G18: =G2/I2 -> 44 | H18: COSTO UNIT | I18: =E18/G18 -> 1.225378788

Sheet Hoja5
B1: VERIFICACIÓN DE HERRAMIENTAS OPCIONALES EN UP
A2: N° | B2: MÁQUINA | C2: VERIFICACIÓN | D2: COSTO | E2: COSTO NUEVO | F2: PROD EST. | G2: =Hoja4!G18 -> 44
A3: 1 | B3: PAPEL RESMA | C3: SI | D3: 1 | E3: =IF(C3="SI",D3,0) -> 1
A4: 2 | B4: PAPEL SABANA | C4: NO | D4: 1 | E4: =IF(C4="SI",D4,0) -> 0
A5: 3 | B5: PAPEL MILIMETRADO | C5: SI | D5: 1 | E5: 1
A6: 4 | B6: TARJETA DE TEJIDO NUEVO | C6: NO | D6: 5 | E6: 0
A7: 5 | B7: TARJETA DE TEJIDO PERFORADO | C7: NO | D7: 10 | E7: 0
A8: 6 | B8: PERFORADOR | C8: NO | D8: 20 | E8: 0
D10: TOTAL | E10: =SUM(E3:E9) -> 2 | F10: COSTO UNIT | G10: =E10/G2 -> 0.04545454545

Sheet Hoja6
B1: GASTOS INDIRECTOS MENSUALES
A2: N° | B2: ESPECIFICACION | C2: COSTO MES | D2: COSTO PRO | E2: PROD EST. | F2: =Hoja2!H8 -> 44
A3: 1 | B3: ALQUILER | C3: 0 | D3: =C3/$F$2 -> 0
A4: 2 | B4: INTERNET | C4: 9 | D4: =C4/$F$2 -> 0.2045454545
A5: 3 | B5: PUBLICIDAD | C5: 0 | D5: 0
A6: 4 | B6: CRÉDITOS BANCARIOS | C6: 0 | D6: 0
A7: 5 | B7: IMPUESTOS | C7: 0 | D7: 0
B9: GASTOS INDIRECTOS | C9: =SUM(C3:C8) -> 9

Sheet Hoja7
B1: LANA
A2: NOMBRE | B2: COMPROBANTE | C2: COSTO UNIDAD | D2: GRAMAJE | E2: $/GR
A3: ALPACA | B3: SI | C3: 230 | D3: 1000 | E3: =IF(B3="SI",C3/D3,0) -> 0.23
A4: ALPAQUITA | B4: NO | C4: 55 | D4: 1000 | E4: =IF(B4="SI",C4/D4,0) -> 0
A5: BABY ALPACA | B5: NO | C5: 245 | D5: 1000 | E5: 0
A6: NATURAL | B6: NO | C6: 220 | D6: 1000 | E6: 0
A7: NO USO | B7: NO | C7: 0 | D7: 1000 | E7: 0

Sheet Hoja17 (hidden)
B2: COSTOS MANO DE OBRA DIRECTA
B4: COSTO MATERIA PRIMA
C6: OPERACIÓN | D6: TIEMPO HORA | E6: PAGO MES | F6: PAGO JORNAL | G6: COSTO HORA | H6: COSTO
C7: TEJIDO | D7: =CHOMPA!E26 -> 1 | F7: =D7*E7 -> 0 | G7: 10 | H7: =G7*D7 -> 10
B8: HILO | C8: UNIDO | D8: =CHOMPA!E27 -> 1 | F8: =D8*E8 -> 0 | G8: 10 | H8: =G8*D8 -> 10
C9: PLANCHADO | D9: 1 | G9: 5 | H9: 5
C10: OTRO | D10: 0 | G10: 5 | H10: =G10*D10 -> 0
F12: COSTO TOTAL MANO DE OBRA | H12: =SUM(H7:H10) -> 25

Sheet Hoja8
A1: HILO
A2: NOMBRE | B2: COMPROBANTE | C2: COSTO UNIDAD | D2: GRAMAJE | E2: $/GR
A3: ALPACA | B3: NO | C3: 0 | D3: 1 | E3: =IF(B3="SI",C3/D3,0) -> 0
A4: ACRILICO | B4: NO | C4: 0 | D4: 1 | E4: =IF(B4="SI",C4/D4,0) -> 0
A5: ARDILLA | B5: NO | C5: 0 | D5: 1 | E5: 0
A6: INDUSTRIAL | B6: NO | C6: 0 | D6: 1 | E6: 0
A7: ALPANDINA | B7: NO | C7: 0 | D7: 1 | E7: 0
A8: ALGODÓN | B8: NO | C8: 0 | D8: 1 | E8: 0
A9: NO USO | B9: SI | C9: 0 | D9: 1 | E9: 0

Sheet Hoja16
B2: COSTOS MATERIAS PRIMAS E INSUMOS
B4: COSTO MATERIA PRIMA
D5: COSTO UNITARIO (GR.) | E5: GR. | F5: COSTO MATERIA
B6: LANA | C6: =IF(B6="LANA",CHOMPA!C11,IF(B6="HILO",CHOMPA!C12,0)) -> ALPACA | D6: =IF(B6="LANA",VLOOKUP(C6,Hoja7!A3:E7,5,FALSE),VLOOKUP(C6,Hoja8!A3:E9,5,FALSE)) -> 0.23 | E6: =IF(C6<>"NO USO",CHOMPA!E11,0) -> 150 | F6: =D6*E6 -> 34.5
B7: HILO | C7: =CHOMPA!C12 -> NO USO | D7: =IF(B7="LANA",VLOOKUP(C7,Hoja7!A3:E7,5,FALSE),VLOOKUP(C7,Hoja8!A3:E9,5,FALSE)) -> 0 | E7: =IF(C7<>"NO USO",CHOMPA!E12,0) -> 0 | F7: =D7*E7 -> 0
D8: COSTO TOTAL MATERIA PRIMA | F8: =SUM(F6:F7) -> 34.5
B11: COSTO ACCESORIOS
D12: COSTO UNITARIO (GR.) | E12: UNID | F12: COSTO MATERIA
B13: LANA | C13: =IF(B13="LANA",CHOMPA!C18,IF(B13="HILO",CHOMPA!C19,0)) -> FLOR TEJIDA | D13: 4 | E13: 1 | F13: =D13*E13 -> 4
B14: HILO | C14: =CHOMPA!C19 -> NO USO | D14: 3 | E14: 2 | F14: =D14*E14 -> 6
D15: COSTO TOTAL MATERIA PRIMA | F15: =SUM(F13:F14) -> 10
C17: EMPAQUETADO
B18: BOLSA | C18: NYLON | D18: 1 | E18: 0.1 | F18: =D18*E18 -> 0.1
B19: ETIQUETA | D19: 1 | E19: 0.5 | F19: =D19*E19 -> 0.5
D20: COSTO TOTAL MATERIA PRIMA | F20: =SUM(F18:F19) -> 0.6

Sheet GORRO
B2: GORRO
B4: PUNTO DE TEJIDO | C4: TRENZAS | D4: COLOR | E4: LISO
B6: MATERIA PRIMA E INSUMOS
D7: =IF(C8="NO USO"," ","PESO EN GR.") ->  | E7: 150
B8: LANA | C8: NO USO | D8: =IF(C9="NO USO"," ","PESO EN GR.") ->  | E8: 870 | F8: =IF(C8<>"NO USO","GR."," ") -> 
B9: HILO | C9: NO USO | F9: =IF(C9<>"NO USO","GR."," ") -> 
B13: ACCESORIOS | L13: DIMENSIONES DE LA PRENDA
D14: =IF($C$18<>"NO USO","CANTIDAD POR PRENDA",IF($C$16<>"NO USO","CANTIDAD POR PRENDA",IF($C$19<>"NO USO","CANTIDAD POR PRENDA",IF($C$17<>"NO USO","CANTIDAD POR PRENDA",IF($C$20<>"NO USO","CANTIDAD POR PRENDA"," "))))) -> 
C15: TIPO | D15: 5 | F15: =IF($C$18<>"NO USO","UNID",IF($C$16<>"NO USO","UNID",IF($C$19<>"NO USO","UNID",IF($C$17<>"NO USO","UNID",IF($C$20<>"NO USO","UNID"," "))))) -> 
B16: ADORNOS TEJIDOS: | C16: NO USO | D16: 1 | F16: =IF(C16<>"NO USO","UNID."," ") ->  | L16: MEDIDA DE : | O16: DIM. | P16: UNID.
B17: BORDADO: | C17: NO USO | D17: 5 | F17: =IF(C17<>"NO USO","UNID."," ") ->  | L17: 1) | M17: CIRCUNFERENCIA CABEZA | P17: CM.
B18: POMPONES | C18: NO USO | D18: 1 | L18: 2) | M18: CIRCUNFERENCIA GORRO | P18: CM.
B19: DETALLES DE OTRA TELA: | C19: NO USO | F19: =IF(C19<>"NO USO","CM."," ") ->  | L19: 3) | M19: ALTURA DEL GORRO | P19: CM.
B20: OTRO | C20: NO USO | L20: 4) | M20: DIAMETRO DE CORONA | P20: CM.
B22: MAQUINARÍA Y HERRAMIENTAS | G22: MANO DE OBRA | H22: =IF(G24="DESTAJO","¿CUÁNTO PAGA POR PRENDA?",IF(G25="DESTAJO","¿CUÁNTO PAGA POR PRENDA?",IF(G26="DESTAJO","¿CUÁNTO PAGA POR PRENDA?",""))) -> ¿CUÁNTO PAGA POR PRENDA?
M23: COSTO FINAL | P23: BS.
B24: TEJIDO | C24: MÁQUINA SIMPLE | D24: TIEMPO TRABAJO: | E24: 1 | F24: HR. | G24: DESTAJO | I24: =IF(G24="DESTAJO","BS."," ") -> BS.
B25: UNIÓN DE PIEZAS | C25: REMALLADORA | D25: TIEMPO TRABAJO: | E25: 1 | F25: HR. | G25: LO HAGO YO | I25: =IF(G25="DESTAJO","BS."," ") ->  | M25: PORCENTAJE DE GANANCIA | O25: 30 | P25: =IF(M25="PORCENTAJE DE GANANCIA","%","BS.") -> % | R25: PRECIO DE VENTA UNITARIO SUGERIDO | T25: =IF(M25="PORCENTAJE DE GANANCIA",O23*(1+(O25/100)),O23+O25) -> 0 | U25: BS.
B26: MÁQ. ADICIONAL | C26: NINGUNO | F26: MIN. | I26: =IF(G26="DESTAJO","BS."," ") -> 

Sheet GUANTES (hidden)
B2: GUANTES
B4: PUNTO DE TEJIDO | C4: TRENZAS | D4: COLOR | E4: LISO
B5: CON O SIN ABERTURA | C5: CON ABERTURA PARA DEDOS | D5: TIPO DE ABERTURA: | E5: TIPO MITÓN
B7: MATERIA PRIMA E INSUMOS
D8: =IF(C9="NO USO"," ","PESO EN GR.") ->  | E8: 150
B9: LANA | C9: NO USO | D9: =IF(C10="NO USO"," ","PESO EN GR.") ->  | E9: 870 | F9: =IF(C9<>"NO USO","GR."," ") -> 
B10: HILO | C10: NO USO | F10: =IF(C10<>"NO USO","GR."," ") -> 
B14: ACCESORIOS
D15: =IF($C$19<>"NO USO","CANTIDAD POR PRENDA",IF($C$17<>"NO USO","CANTIDAD POR PRENDA",IF($C$20<>"NO USO","CANTIDAD POR PRENDA",IF($C$18<>"NO USO","CANTIDAD POR PRENDA",IF($C$21<>"NO USO","CANTIDAD POR PRENDA"," "))))) ->  | L15: DIMENSIONES DE LA PRENDA
C16: TIPO | D16: 5 | F16: =IF($C$19<>"NO USO","UNID",IF($C$17<>"NO USO","UNID",IF($C$20<>"NO USO","UNID",IF($C$18<>"NO USO","UNID",IF($C$21<>"NO USO","UNID"," "))))) -> 
B17: ADORNOS TEJIDOS: | C17: NO USO | D17: 1 | F17: =IF(C17<>"NO USO","UNID."," ") ->  | L17: MEDIDA DE : | O17: DIM. | P17: UNID.
B18: BORDADO: | C18: NO USO | D18: 5 | F18: =IF(C18<>"NO USO","UNID."," ") ->  | L18: 1) | M18: CIRCUNFERENCIA DE MANO | P18: CM.
B19: BOTONES: | C19: NO USO | D19: 1 | L19: 2) | M19: CIRCUNFERENCIA MUÑECA | P19: CM.
B20: DETALLES DE OTRA TELA: | C20: NO USO | F20: =IF(C20<>"NO USO","CM."," ") ->  | L20: 3) | M20: LARGO MEÑIQUE | P20: CM.
B21: OTRO | C21: NO USO | L21: 4) | M21: LARGO TOTAL | P21: CM.
B23: MAQUINARÍA Y HERRAMIENTAS | G23: MANO DE OBRA | H23: =IF(G25="DESTAJO","¿CUÁNTO PAGA POR PRENDA?",IF(G26="DESTAJO","¿CUÁNTO PAGA POR PRENDA?",IF(G27="DESTAJO","¿CUÁNTO PAGA POR PRENDA?",""))) -> ¿CUÁNTO PAGA POR PRENDA?
M24: COSTO FINAL | P24: BS.
B25: TEJIDO | C25: MÁQUINA SIMPLE | D25: TIEMPO TRABAJO: | E25: 1 | F25: HR. | G25: DESTAJO | I25: =IF(G25="DESTAJO","BS."," ") -> BS.
B26: UNIÓN DE PIEZAS | C26: REMALLADORA | D26: TIEMPO TRABAJO: | E26: 1 | F26: HR. | G26: LO HAGO YO | I26: =IF(G26="DESTAJO","BS."," ") ->  | M26: PORCENTAJE DE GANANCIA | O26: 30 | P26: =IF(M26="PORCENTAJE DE GANANCIA","%","BS.") -> % | R26: PRECIO DE VENTA UNITARIO SUGERIDO | T26: =IF(M26="PORCENTAJE DE GANANCIA",O24*(1+(O26/100)),O24+O26) -> 0 | U26: BS.
B27: MÁQ. ADICIONAL | C27: NINGUNO | F27: MIN. | I27: =IF(G27="DESTAJO","BS."," ") -> 

Sheet CHALINA (hidden)
B2: CHALINA
B4: PUNTO DE TEJIDO | C4: TRENZAS | D4: COLOR | E4: LISO
B5: CON O SIN BOLSILLO | C5: CON BOLSILLO | D5: CERRADO O ABIERTO | E5: CERRADO
B7: MATERIA PRIMA E INSUMOS
D8: =IF(C9="NO USO"," ","PESO EN GR.") ->  | E8: 150
B9: LANA | C9: NO USO | D9: =IF(C10="NO USO"," ","PESO EN GR.") ->  | E9: 870 | F9: =IF(C9<>"NO USO","GR."," ") -> 
B10: HILO | C10: NO USO | F10: =IF(C10<>"NO USO","GR."," ") -> 
L12: DIMENSIONES DE LA PRENDA
B14: ACCESORIOS
D15: =IF($C$19<>"NO USO","CANTIDAD POR PRENDA",IF($C$17<>"NO USO","CANTIDAD POR PRENDA",IF($C$20<>"NO USO","CANTIDAD POR PRENDA",IF($C$18<>"NO USO","CANTIDAD POR PRENDA",IF($C$21<>"NO USO","CANTIDAD POR PRENDA"," "))))) -> 
C16: TIPO | D16: 5 | F16: =IF($C$19<>"NO USO","UNID",IF($C$17<>"NO USO","UNID",IF($C$20<>"NO USO","UNID",IF($C$18<>"NO USO","UNID",IF($C$21<>"NO USO","UNID"," "))))) -> 
B17: ADORNOS TEJIDOS: | C17: NO USO | D17: 1 | F17: =IF(C17<>"NO USO","UNID."," ") -> 
B18: BORDADO: | C18: NO USO | D18: 5 | F18: =IF(C18<>"NO USO","UNID."," ") ->  | L18: MEDIDA DE : | O18: DIM. | P18: UNID.
B19: BOTONES: | C19: NO USO | D19: 1 | L19: 1) | M19: ANCHO DE CHALINA | P19: CM.
B20: DETALLES DE OTRA TELA: | C20: NO USO | F20: =IF(C20<>"NO USO","CM."," ") ->  | L20: 2) | M20: LARGO DE LA CHALINA | P20: CM.
B21: OTRO | C21: NO USO | L21: 3) | M21: LARGO TOTAL | P21: CM.
B23: MAQUINARÍA Y HERRAMIENTAS | G23: MANO DE OBRA | H23: =IF(G25="DESTAJO","¿CUÁNTO PAGA POR PRENDA?",IF(G26="DESTAJO","¿CUÁNTO PAGA POR PRENDA?",IF(G27="DESTAJO","¿CUÁNTO PAGA POR PRENDA?",""))) -> ¿CUÁNTO PAGA POR PRENDA?
M24: COSTO FINAL | O24: ='DETALLE DE COSTOS CHOMPA'!C23 -> 74.64753788 | P24: BS.
B25: TEJIDO | C25: MÁQUINA SIMPLE | D25: TIEMPO TRABAJO: | E25: 1 | F25: HR. | G25: DESTAJO | I25: =IF(G25="DESTAJO","BS."," ") -> BS.
B26: UNIÓN DE PIEZAS | C26: REMALLADORA | D26: TIEMPO TRABAJO: | E26: 1 | F26: HR. | G26: LO HAGO YO | I26: =IF(G26="DESTAJO","BS."," ") ->  | M26: PORCENTAJE DE GANANCIA | O26: 30 | P26: =IF(M26="PORCENTAJE DE GANANCIA","%","BS.") -> % | R26: PRECIO DE VENTA UNITARIO SUGERIDO | T26: =IF(M26="PORCENTAJE DE GANANCIA",O24*(1+(O26/100)),O24+O26) -> 97.04179924 | U26: BS.
B27: MÁQ. ADICIONAL | C27: NINGUNO | F27: MIN. | I27: =IF(G27="DESTAJO","BS."," ") -> 

Sheet Hoja15 (hidden)
B2: MANO DE OBRA INDIRECTA
A3: N° | B3: ESPECIFICACION | C3: COSTO MES
B4: PAGO DUEÑO
B5: ADMINISTRADOR
B6: AYUDANTE
B8: GASTOS INDIRECTOS | C8: =SUM(C2:C7) -> 0

Sheet CHOMPA
B2: CHOMPA
B4: PUNTO DE TEJIDO | C4: TRENZAS | D4: COLOR | E4: LISO
B5: CON O SIN BOLSILLO | C5: CON BOLSILLO | D5: TIPO DE CUELLO | E5: CUELLO EN V | O5: DIMENSIONES DE LA TALLA
B6: CERRADO O ABIERTO | C6: CERRADO | D6: TIPO DE MANGA | E6: CORTA
O7: GÉNERO | P7: MUJER
O8: TALLA | P8: S
B9: MATERIA PRIMA E INSUMOS
B11: LANA | C11: ALPACA | D11: =IF(C11="NO USO"," ","PESO EN GR.") -> PESO EN GR. | E11: 150 | F11: =IF(C11<>"NO USO","GR."," ") -> GR. | L11: MEDIDA DE : | O11: DIM. | P11: UNID.
B12: HILO | C12: NO USO | D12: =IF(C12="NO USO"," ","PESO EN GR.") ->  | E12: 870 | F12: =IF(C12<>"NO USO","GR."," ") ->  | L12: A) | M12: ANCHO DE CUELLO (Abertura) | P12: CM.
L13: B) | M13: ANCHO DE HOMBROS | P13: CM.
L14: C) | M14: ANCHO DE PECHO | P14: CM.
B15: ACCESORIOS | L15: D) | M15: ANCHO DE CADERA | P15: CM.
L16: E) | M16: ANCHO DE CINTURA | P16: CM.
C17: TIPO | D17: =IF($C$20<>"NO USO","CANTIDAD POR PRENDA",IF($C$18<>"NO USO","CANTIDAD POR PRENDA",IF($C$21<>"NO USO","CANTIDAD POR PRENDA",IF($C$19<>"NO USO","CANTIDAD POR PRENDA",IF($C$22<>"NO USO","CANTIDAD POR PRENDA"," "))))) -> CANTIDAD POR PRENDA | F17: =IF($C$20<>"NO USO","UNID",IF($C$18<>"NO USO","UNID",IF($C$21<>"NO USO","UNID",IF($C$19<>"NO USO","UNID",IF($C$22<>"NO USO","UNID"," "))))) -> UNID | L17: F) | M17: ANCHO DE PUÑO | P17: CM.
B18: ADORNOS TEJIDOS: | C18: FLOR TEJIDA | D18: 5 | F18: =IF(C18<>"NO USO","UNID."," ") -> UNID. | L18: G) | M18: LARGO DE LA MANGA | P18: CM.
B19: BORDADO: | C19: NO USO | D19: 1 | F19: =IF(C19<>"NO USO","UNID."," ") ->  | L19: H) | M19: LARGO DE LA SISA | P19: CM.
B20: BOTONES: | C20: NO USO | D20: 5 | L20: I) | M20: LARGO TOTAL | P20: CM.
B21: DETALLES DE OTRA TELA: | C21: NO USO | D21: 1 | F21: =IF(C21<>"NO USO","CM."," ") ->  | L21: J) | M21: PROFUNDIDAD DE CUELLO | P21: CM.
B22: OTRO | C22: NO USO | L22: K) | M22: PRETINA | P22: CM.
B24: MAQUINARÍA Y HERRAMIENTAS | G24: MANO DE OBRA | H24: =IF(G26="DESTAJO","¿CUÁNTO PAGA POR PRENDA?",IF(G27="DESTAJO","¿CUÁNTO PAGA POR PRENDA?",IF(G28="DESTAJO","¿CUÁNTO PAGA POR PRENDA?",""))) -> ¿CUÁNTO PAGA POR PRENDA?
M25: COSTO FINAL | O25: ='DETALLE DE COSTOS CHOMPA'!C23 -> 74.64753788 | P25: BS.
B26: TEJIDO | C26: MÁQUINA INDUSTRIAL | D26: TIEMPO TRABAJO: | E26: 1 | F26: HR. | G26: DESTAJO | I26: =IF(G26="DESTAJO","BS."," ") -> BS.
B27: UNIÓN DE PIEZAS | C27: REMALLADORA | D27: TIEMPO TRABAJO: | E27: 1 | F27: HR. | G27: LO HAGO YO | I27: =IF(G27="DESTAJO","BS."," ") ->  | M27: PORCENTAJE DE GANANCIA | O27: 30 | P27: =IF(M27="PORCENTAJE DE GANANCIA","%","BS.") -> % | R27: PRECIO DE VENTA UNITARIO SUGERIDO | T27: =IF(M27="PORCENTAJE DE GANANCIA",O25*(1+(O27/100)),O25+O27) -> 97.04179924 | U27: BS.
B28: PLANCHADO | C28: PLANCHA A VAPOR | D28: =IF(C28<>"NO USO","TIEMPO TRABAJO:"," ") -> TIEMPO TRABAJO: | E28: 2 | F28: HR. | I28: =IF(G28="DESTAJO","BS."," ") -> 
B29: MÁQ. ADICIONAL | C29: NINGUNO | D29: =IF(C29<>"NINGUNO","TIEMPO TRABAJO"," ") ->  | E29: 4 | F29: MIN.

Sheet DETALLE DE COSTOS GUANTES (hidden)
B2: DETALLE DE COSTOS GUANTES
B4: TIPO DE COSTO | C4: COSTO EN BS. POR PRENDA
B5: 1) MATERIA PRIMA DIRECTA
B6: =IF(CHOMPA!C11<>"NO USO",CONCATENATE("LANA ",CHOMPA!C11," ",CHOMPA!E11," GR."),CONCATENATE("HILO ",CHOMPA!C12," ",CHOMPA!E12," GR.")) -> LANA ALPACA 150 GR. | C6: =Hoja16!F8 -> 34.5
B7: 2) MANO DE OBRA DIRECTA | C7: =Hoja17!H12 -> 25
B8: 3) COSTOS INDIRECTOS DE FABRICACIÓN
B9: ALQUILER | C9: =Hoja6!D3 -> 0
B10: IMPUESTOS | C10: =Hoja6!D4 -> 0.2045454545
B11: INTERNET | C11: =Hoja6!D5 -> 0
B12: PUBLICIDAD | C12: =Hoja6!D6 -> 0
B13: DEPRECIACIÓN | C13: =SUM(C14:C17) -> 8.770075758
B14: DEPRECIACIÓN MAQUINARÍA | C14: 5
B15: DEPRECIACIÓN MOBILIARIO | C15: =Hoja2!J8 -> 0.1715909091
B16: DEPRECIACIÓN HERRAMIENTAS TECNOLOGICAS | C16: =Hoja3!J7 -> 2.373106061
B17: DEPRECIACIÓN HERRAMIENTAS | C17: =Hoja4!I18 -> 1.225378788
B18: ACCESORIOS | C18: =Hoja16!F15 -> 10
B19: INSUMOS DE EMPAQUETADO | C19: =Hoja16!F20 -> 0.6
B20: SERVICIOS | C20: 5
B21: CRÉDITOS BANCARIOS | C21: =Hoja6!D7 -> 0
B23: COSTO TOTAL | C23: =SUM(C6,C7,C9,C10,C11,C12,C13,C18,C19,C21,C22) -> 79.07462121

Sheet DETALLE DE COSTOS GORRO
B2: DETALLE DE COSTOS GORRO
B4: TIPO DE COSTO | C4: COSTO EN BS. POR PRENDA
B5: 1) MATERIA PRIMA DIRECTA
B6: =IF(CHOMPA!C11<>"NO USO",CONCATENATE("LANA ",CHOMPA!C11," ",CHOMPA!E11," GR."),CONCATENATE("HILO ",CHOMPA!C12," ",CHOMPA!E12," GR.")) -> LANA ALPACA 150 GR. | C6: =Hoja16!F8 -> 34.5
B7: 2) MANO DE OBRA DIRECTA | C7: =Hoja17!H12 -> 25
B8: 3) COSTOS INDIRECTOS DE FABRICACIÓN
B9: ALQUILER | C9: =Hoja6!D3 -> 0
B10: IMPUESTOS | C10: =Hoja6!D4 -> 0.2045454545
B11: INTERNET | C11: =Hoja6!D5 -> 0
B12: PUBLICIDAD | C12: =Hoja6!D6 -> 0
B13: DEPRECIACIÓN | C13: =SUM(C14:C17) -> 8.770075758
B14: DEPRECIACIÓN MAQUINARÍA | C14: 5
B15: DEPRECIACIÓN MOBILIARIO | C15: =Hoja2!J8 -> 0.1715909091
B16: DEPRECIACIÓN HERRAMIENTAS TECNOLOGICAS | C16: =Hoja3!J7 -> 2.373106061
B17: DEPRECIACIÓN HERRAMIENTAS | C17: =Hoja4!I18 -> 1.225378788
B18: ACCESORIOS | C18: =Hoja16!F15 -> 10
B19: INSUMOS DE EMPAQUETADO | C19: =Hoja16!F20 -> 0.6
B20: SERVICIOS | C20: 5
B21: CRÉDITOS BANCARIOS | C21: =Hoja6!D7 -> 0
B23: COSTO TOTAL | C23: =SUM(C6,C7,C9,C10,C11,C12,C13,C18,C19,C21,C22) -> 79.07462121

Sheet DETALLE DE COSTOS CHALINA (hidden)
B2: DETALLE DE COSTOS CHALINA
B4: TIPO DE COSTO | C4: COSTO EN BS. POR PRENDA
B5: 1) MATERIA PRIMA DIRECTA
B6: =IF(CHOMPA!C11<>"NO USO",CONCATENATE("LANA ",CHOMPA!C11," ",CHOMPA!E11," GR."),CONCATENATE("HILO ",CHOMPA!C12," ",CHOMPA!E12," GR.")) -> LANA ALPACA 150 GR. | C6: =Hoja16!F8 -> 34.5
B7: 2) MANO DE OBRA DIRECTA | C7: =Hoja17!H12 -> 25
B8: 3) COSTOS INDIRECTOS DE FABRICACIÓN
B9: ALQUILER | C9: =Hoja6!D3 -> 0
B10: IMPUESTOS | C10: =Hoja6!D4 -> 0.2045454545
B11: INTERNET | C11: =Hoja6!D5 -> 0
B12: PUBLICIDAD | C12: =Hoja6!D6 -> 0
B13: DEPRECIACIÓN | C13: =SUM(C14:C17) -> 8.770075758
B14: DEPRECIACIÓN MAQUINARÍA | C14: 5
B15: DEPRECIACIÓN MOBILIARIO | C15: =Hoja2!J8 -> 0.1715909091
B16: DEPRECIACIÓN HERRAMIENTAS TECNOLOGICAS | C16: =Hoja3!J7 -> 2.373106061
B17: DEPRECIACIÓN HERRAMIENTAS | C17: =Hoja4!I18 -> 1.225378788
B18: ACCESORIOS | C18: =Hoja16!F15 -> 10
B19: INSUMOS DE EMPAQUETADO | C19: =Hoja16!F20 -> 0.6
B20: SERVICIOS | C20: 5
B21: CRÉDITOS BANCARIOS | C21: =Hoja6!D7 -> 0
B23: COSTO TOTAL | C23: =SUM(C6,C7,C9,C10,C11,C12,C13,C18,C19,C21,C22) -> 79.07462121

Sheet DETALLE DE COSTOS CHOMPA
B2: DETALLE DE COSTOS
B4: TIPO DE COSTO | C4: COSTO EN BS. POR PRENDA
B5: 1) MATERIA PRIMA DIRECTA
B6: =IF(CHOMPA!C11<>"NO USO",CONCATENATE("LANA ",CHOMPA!C11," ",CHOMPA!E11," GR."),CONCATENATE("HILO ",CHOMPA!C12," ",CHOMPA!E12," GR.")) -> LANA ALPACA 150 GR. | C6: =Hoja16!F8 -> 34.5
B7: 2) MANO DE OBRA DIRECTA | C7: =Hoja17!H12 -> 25
B8: 3) COSTOS INDIRECTOS DE FABRICACIÓN
B9: ALQUILER | C9: =Hoja6!D3 -> 0
B10: IMPUESTOS | C10: =Hoja6!D4 -> 0.2045454545
B11: INTERNET | C11: =Hoja6!D5 -> 0
B12: PUBLICIDAD | C12: =Hoja6!D6 -> 0
B13: DEPRECIACIÓN | C13: =SUM(C14:C17) -> 4.342992424
B14: DEPRECIACIÓN MAQUINARÍA | C14: =+Hoja1!F17 -> 0.5729166667
B15: DEPRECIACIÓN MOBILIARIO | C15: =Hoja2!J8 -> 0.1715909091
B16: DEPRECIACIÓN HERRAMIENTAS TECNOLOGICAS | C16: =Hoja3!J7 -> 2.373106061
B17: DEPRECIACIÓN HERRAMIENTAS | C17: =Hoja4!I18 -> 1.225378788
B18: ACCESORIOS | C18: =Hoja16!F15 -> 10
B19: INSUMOS DE EMPAQUETADO | C19: =Hoja16!F20 -> 0.6
B20: SERVICIOS | C20: 5
B21: CRÉDITOS BANCARIOS | C21: =Hoja6!D7 -> 0
B23: COSTO TOTAL | C23: =SUM(C6,C7,C9,C10,C11,C12,C13,C18,C19,C21,C22) -> 74.64753788

Sheet FICHA TÉCNICA GUANTES (hidden)
B2: FICHA TÉCNICA DE LA GUANTES
B5: PRODUCTO:
G6: SIN FACTURA
D10: =CONCATENATE(GUANTES!B2," PARA ",GUANTES!P7," TALLA ",GUANTES!P8," CON LAS DIMENSIONES EN CM. DE: ",[1]GUNATES!L12," ",CHOMPA!M12," ",CHOMPA!O12," ; ",CHOMPA!L13," ",CHOMPA!M13," ",CHOMPA!O13," ; ",CHOMPA!L14," ",CHOMPA!M14," ",CHOMPA!O14," ; ",CHOMPA!L15," ",CHOMPA!M15," ",CHOMPA!O15," ; ",CHOMPA!L16," ",CHOMPA!M16," ",CHOMPA!O16," ; ",CHOMPA!L17," ",CHOMPA!M17," ",CHOMPA!O17," ; ",CHOMPA!L18," ",CHOMPA!M18," ",CHOMPA!O18," ; ",CHOMPA!L19," ",CHOMPA!M19," ",CHOMPA!O19," ; ",CHOMPA!L20," ",CHOMPA!M20," ",CHOMPA!O20," ; ",CHOMPA!L21," ",CHOMPA!M21," ",CHOMPA!O21," ; ",CHOMPA!L22," ",CHOMPA!M22," ",CHOMPA!O22,".") ->  | G10: PRECIO DE VENTA UNITARIO | H10: ='DETALLE DE COSTOS CHALINA'!C23 -> 79.07462121
B11: DIMENSIONES:
G13: CANTIDAD | H13: 2
G15: PRECIO DE VENTA TOTAL | H15: =H10*H13 -> 158.1492424

Sheet FICHA TÉCNICA GORRO
B2: FICHA TÉCNICA DEL GORRO
B5: PRODUCTO:
G6: SIN FACTURA
G10: PRECIO DE VENTA UNITARIO | H10: ='DETALLE DE COSTOS CHALINA'!C23 -> 79.07462121
B11: DIMENSIONES:
G13: CANTIDAD | H13: 2
G15: PRECIO DE VENTA TOTAL | H15: =H10*H13 -> 158.1492424

Sheet FICHA TÉCNICA CHALINA (hidden)
B2: FICHA TÉCNICA DE LA CHALINA
B5: PRODUCTO: | D5: =CONCATENATE(CHOMPA!B2," "," ",CHOMPA!C6," ",CHOMPA!E4," CON ",CHOMPA!B4," ",CHOMPA!C4," CON CUELLO ",CHOMPA!E5," CON MANGA ",CHOMPA!E6," ",CHOMPA!C5) -> CHOMPA CERRADO LISO CON PUNTO DE TEJIDO TRENZAS CON CUELLO CUELLO EN V CON MANGA CORTA CON BOLSILLO
D10: =CONCATENATE(CHOMPA!B2," PARA ",CHOMPA!P7," TALLA ",CHOMPA!P8," CON LAS DIMENSIONES EN CM. DE: ",CHOMPA!L12," ",CHOMPA!M12," ",CHOMPA!O12," ; ",CHOMPA!L13," ",CHOMPA!M13," ",CHOMPA!O13," ; ",CHOMPA!L14," ",CHOMPA!M14," ",CHOMPA!O14," ; ",CHOMPA!L15," ",CHOMPA!M15," ",CHOMPA!O15," ; ",CHOMPA!L16," ",CHOMPA!M16," ",CHOMPA!O16," ; ",CHOMPA!L17," ",CHOMPA!M17," ",CHOMPA!O17," ; ",CHOMPA!L18," ",CHOMPA!M18," ",CHOMPA!O18," ; ",CHOMPA!L19," ",CHOMPA!M19," ",CHOMPA!O19," ; ",CHOMPA!L20," ",CHOMPA!M20," ",CHOMPA!O20," ; ",CHOMPA!L21," ",CHOMPA!M21," ",CHOMPA!O21," ; ",CHOMPA!L22," ",CHOMPA!M22," ",CHOMPA!O22,".") -> CHOMPA PARA MUJER TALLA S CON LAS DIMENSIONES EN CM. DE: A) ANCHO DE CUELLO (Abertura) ; B) ANCHO DE HOMBROS ; C) ANCHO DE PECHO ; D) ANCHO DE CADERA ; E) ANCHO DE CINTURA ; F) ANCHO DE PUÑO ; G) LARGO DE LA MANGA ; H) LARGO DE LA SISA ; I) LARGO TOTAL ; J) PROFUNDIDAD DE CUELLO ; K) PRETINA . | G10: PRECIO DE VENTA UNITARIO | H10: ='DETALLE DE COSTOS CHALINA'!C23 -> 79.07462121
B11: DIMENSIONES:
G13: CANTIDAD | H13: 2
G15: PRECIO DE VENTA TOTAL | H15: =H10*H13 -> 158.1492424

Sheet FICHA TÉCNICA CHOMPA
B2: FICHA TÉCNICA DE LA CHOMPA
B5: PRODUCTO: | D5: =CONCATENATE(CHOMPA!B2," "," ",CHOMPA!C6," ",CHOMPA!E4," CON ",CHOMPA!B4," ",CHOMPA!C4," CON CUELLO ",CHOMPA!E5," CON MANGA ",CHOMPA!E6," ",CHOMPA!C5) -> CHOMPA CERRADO LISO CON PUNTO DE TEJIDO TRENZAS CON CUELLO CUELLO EN V CON MANGA CORTA CON BOLSILLO
D10: =CONCATENATE(CHOMPA!B2," PARA ",CHOMPA!P7," TALLA ",CHOMPA!P8," CON LAS DIMENSIONES EN CM. DE: ",CHOMPA!L12," ",CHOMPA!M12," ",CHOMPA!O12," ; ",CHOMPA!L13," ",CHOMPA!M13," ",CHOMPA!O13," ; ",CHOMPA!L14," ",CHOMPA!M14," ",CHOMPA!O14," ; ",CHOMPA!L15," ",CHOMPA!M15," ",CHOMPA!O15," ; ",CHOMPA!L16," ",CHOMPA!M16," ",CHOMPA!O16," ; ",CHOMPA!L17," ",CHOMPA!M17," ",CHOMPA!O17," ; ",CHOMPA!L18," ",CHOMPA!M18," ",CHOMPA!O18," ; ",CHOMPA!L19," ",CHOMPA!M19," ",CHOMPA!O19," ; ",CHOMPA!L20," ",CHOMPA!M20," ",CHOMPA!O20," ; ",CHOMPA!L21," ",CHOMPA!M21," ",CHOMPA!O21," ; ",CHOMPA!L22," ",CHOMPA!M22," ",CHOMPA!O22,".") -> CHOMPA PARA MUJER TALLA S CON LAS DIMENSIONES EN CM. DE: A) ANCHO DE CUELLO (Abertura) ; B) ANCHO DE HOMBROS ; C) ANCHO DE PECHO ; D) ANCHO DE CADERA ; E) ANCHO DE CINTURA ; F) ANCHO DE PUÑO ; G) LARGO DE LA MANGA ; H) LARGO DE LA SISA ; I) LARGO TOTAL ; J) PROFUNDIDAD DE CUELLO ; K) PRETINA . | G10: PRECIO DE VENTA UNITARIO | H10: =CHOMPA!T27 -> 97.04179924
B11: DIMENSIONES:
G13: CANTIDAD | H13: 2
G15: PRECIO DE VENTA TOTAL | H15: =H10*H13 -> 194.0835985

Sheet Hoja11 (hidden)
A1: TIEMPO MAQUINARÍA ELECTRICIDAD
A2: N° | B2: TIPO | C2: TIEMPO
A3: TEJIDO | B3: MANUAL | C3: =IF(B3=CHOMPA!$C$26,CHOMPA!$E$26,0) -> 0
A4: TEJIDO | B4: MÁQUINA SIMPLE | C4: =IF(B4=CHOMPA!$C$26,CHOMPA!$E$26,0) -> 0
A5: TEJIDO | B5: MÁQUINA DOBLE | C5: =IF(B5=CHOMPA!$C$26,CHOMPA!$E$26,0) -> 0
A6: TEJIDO | B6: MÁQUINA INDUSTRIAL | C6: =IF(B6=CHOMPA!$C$26,CHOMPA!$E$26,0) -> 1
A7: UNIÓN DE PIEZAS | B7: MANUAL | C7: =IF(B7=CHOMPA!$C$27,CHOMPA!$E$27,0) -> 0
A8: UNIÓN DE PIEZAS | B8: REMALLADORA | C8: =IF(B8=CHOMPA!$C$27,CHOMPA!$E$27,0) -> 1
A9: PLANCHADO | B9: NO USO | C9: 0
A10: PLANCHADO | B10: PLANCHA A VAPOR | C10: =IF(B10=CHOMPA!$C$28,CHOMPA!$E$28,0) -> 2
A11: MAQ. ADICIONAL | B11: BOTONERA | C11: =IF(B11=CHOMPA!$C$29,CHOMPA!$E$29,0) -> 0
A12: MAQ. ADICIONAL | B12: OVERLOCK 3 HILOS | C12: =IF(B12=CHOMPA!$C$29,CHOMPA!$E$29,0) -> 0
A13: MAQ. ADICIONAL | B13: OVERLOCK 5 HILOS | C13: =IF(B13=CHOMPA!$C$29,CHOMPA!$E$29,0) -> 0
A14: MAQ. ADICIONAL | B14: NINGUNO | C14: =IF(B14=CHOMPA!$C$29,CHOMPA!$E$29,0) -> 4

Sheet ECHO (hidden)
A1: ESPECIFICACIONES DE LA CHOMPA
A2: N° | B2: TIPO | C2: C. ADICIONAL
A3: BOLSILLO | B3: CON BOLSILLO | C3: 0
A4: BOLSILLO | B4: SIN BOLSILLO | C4: 0
A5: ABERTURA | B5: CERRADO | C5: 0
A6: ABERTURA | B6: ABIERTO | C6: 0
A7: PUNTO DE TEJIDO | B7: JERSEY | C7: =IF(B7=CHOMPA!$C$26,CHOMPA!$E$26,0) -> 0
A8: PUNTO DE TEJIDO | B8: TRENZAS | C8: =IF(B8=CHOMPA!$C$26,CHOMPA!$E$26,0) -> 0
A9: PUNTO DE TEJIDO | B9: TARJETA | C9: =IF(B9=CHOMPA!$C$26,CHOMPA!$E$26,0) -> 0
A10: PUNTO DE TEJIDO | B10: TARJETA CALADA | C10: =Hoja5!E10 -> 2
A11: TIPO DE CHOMPA | B11: CORTA | C11: =IF(B11=CHOMPA!$C$27,CHOMPA!$E$27,0) -> 0
A12: TIPO DE CHOMPA | B12: ESTANDAR | C12: =IF(B12=CHOMPA!$C$27,CHOMPA!$E$27,0) -> 0
A13: TIPO DE CHOMPA | B13: LARGA | C13: 0
A14: TIPO DE CUELLO | B14: CUELLO EN V | C14: =IF(B14=CHOMPA!$C$28,CHOMPA!$E$28,0) -> 0
A15: TIPO DE CUELLO | B15: REDONDA | C15: =IF(B15=CHOMPA!$C$29,CHOMPA!$E$29,0) -> 0
A16: TIPO DE CUELLO | B16: CON CAPUCHA | C16: =IF(B16=CHOMPA!$C$29,CHOMPA!$E$29,0) -> 0
A17: MANGA | B17: LARGA | C17: =IF(B17=CHOMPA!$C$29,CHOMPA!$E$29,0) -> 0
A18: MANGA | B18: CORTA | C18: =IF(B18=CHOMPA!$C$29,CHOMPA!$E$29,0) -> 0
A19: MANGA | B19: 3 Y 4 | C19: 0
A20: COLOR | B20: LISO | C20: 0
A21: COLOR | B21: COMBINADO | C21: 0

Sheet Hoja9 (hidden)
A1: ADORNO TEJIDOS
A2: N° | B2: NOMBRE | C2: COSTO
A3: 1 | B3: FLOR TEJIDA | C3: 5
B4: NO USO | C4: 0

Sheet Hoja10 (hidden)
A1: BORDADO CLASICO
A2: N° | B2: NOMBRE | C2: COSTO
A3: 1 | B3: BORDADO SIMPLE | C3: 15
B4: NO USO | C4: 0

Sheet Hoja12 (hidden)
A1: BOTONES
A2: N° | B2: NOMBRE | C2: COSTO PAQ. | D2: CANTIDAD PAQ | E2: COSTO UNIT
A3: 1 | B3: BOTON MADERA | C3: 50 | D3: 100 | E3: =C3/D3 -> 0.5
B4: NO USO | C4: 0 | D4: 1 | E4: =C4/D4 -> 0

Sheet Hoja13 (hidden)
A1: TELAS
A2: N° | B2: NOMBRE | C2: COSTO X M | D2: CM. | E2: COSTO X CM
A3: 1 | B3: AGUAYO | C3: 25 | D3: 100 | E3: =C3/D3 -> 0.25
B4: NO USO | C4: 0 | D4: 0 | E4: 0

Sheet Hoja14 (hidden)
A1: OTROS
A2: N° | B2: NOMBRE | C2: COSTO PAQUETE | D2: CANT PAQ | E2: COSTO UNIT
A3: 1 | B3: CIERRE DE 70 | C3: 50 | D3: 100 | E3: =C3/D3 -> 0.5
B4: BROCHE | C4: 50 | D4: 100 | E4: =C4/D4 -> 0.5
B5: NO USO | C5: 0 | D5: 1 | E5: =C5/D5 -> 0
